[Event "Early-Titled-Tuesday-Blitz-March-19-2024"]
[Site "Chess.com"]
[Date "2024.03.19"]
[Round "9"]
[White "Akylbek2021"]
[Black "Slovineanu"]
[Result "0-1"]
[WhiteElo "2323"]
[BlackElo "2496"]
[TimeControl "180+1"]
[EndTime "9:45:11 PDT"]
[Termination "Slovineanu won by resignation"]

1. f4 {[%clk 0:03:00.9]} 1... d5 {[%clk 0:02:00.1]} 2. Nf3 {[%clk 0:03:00.7]}
2... Nf6 {[%clk 0:01:56.2]} 3. g3 {[%clk 0:03:01.3]} 3... Bg4 {[%clk 0:01:49]}
4. Bg2 {[%clk 0:03:01.7]} 4... Nbd7 {[%clk 0:01:48.5]} 5. O-O {[%clk 0:03:01.5]}
5... c6 {[%clk 0:01:48.7]} 6. d3 {[%clk 0:03:00.6]} 6... Bxf3 {[%clk 0:01:44.5]}
7. Bxf3 {[%clk 0:03:00.5]} 7... e5 {[%clk 0:01:44.6]} 8. fxe5 {[%clk 0:02:57]}
8... Nxe5 {[%clk 0:01:44.4]} 9. Bg2 {[%clk 0:02:57.7]} 9... h5 {[%clk
0:01:42.1]} 10. Bg5 {[%clk 0:02:50.7]} 10... Be7 {[%clk 0:01:40.4]} 11. h3
{[%clk 0:02:50.1]} 11... h4 {[%clk 0:01:24]} 12. Bxh4 {[%clk 0:02:27.6]} 12...
Ng6 {[%clk 0:01:16.5]} 13. Bg5 {[%clk 0:02:24.4]} 13... Qb6+ {[%clk 0:01:08.3]}
14. e3 {[%clk 0:02:09.6]} 14... Nh5 {[%clk 0:00:54.3]} 15. Bxe7 {[%clk
0:02:04.7]} 15... Qxe3+ {[%clk 0:00:40.7]} 16. Rf2 {[%clk 0:01:45.9]} 16... Nxe7
{[%clk 0:00:39.9]} 17. Qf3 {[%clk 0:01:37.2]} 17... Qe1+ {[%clk 0:00:21.5]} 18.
Rf1 {[%clk 0:01:33]} 18... Qxg3 {[%clk 0:00:20.1]} 19. Qxf7+ {[%clk 0:01:31.4]}
19... Kd7 {[%clk 0:00:20.5]} 20. Nd2 {[%clk 0:01:27.3]} 20... Raf8 {[%clk
0:00:20]} 21. Qxf8 {[%clk 0:01:07.6]} 21... Rxf8 {[%clk 0:00:20]} 22. Rxf8
{[%clk 0:01:08.5]} 22... Nf4 {[%clk 0:00:20.3]} 23. Rxf4 {[%clk 0:01:00.8]}
23... Qxf4 {[%clk 0:00:20.8]} 24. Nf3 {[%clk 0:00:59.8]} 24... Nf5 {[%clk
0:00:21.2]} 25. Re1 {[%clk 0:00:59]} 25... Ne3 {[%clk 0:00:18.8]} 26. c3 {[%clk
0:00:54.8]} 26... c5 {[%clk 0:00:16.4]} 27. Kf2 {[%clk 0:00:52.1]} 27... d4
{[%clk 0:00:16.3]} 28. cxd4 {[%clk 0:00:48.5]} 28... cxd4 {[%clk 0:00:16.5]} 29.
b4 {[%clk 0:00:45.6]} 29... g5 {[%clk 0:00:16.2]} 30. a3 {[%clk 0:00:45.5]}
30... g4 {[%clk 0:00:16]} 31. hxg4 {[%clk 0:00:45.8]} 31... Nxg4+ {[%clk
0:00:16]} 32. Kg1 {[%clk 0:00:46.4]} 32... Qg3 {[%clk 0:00:15.8]} 33. Re2 {[%clk
0:00:25.7]} 33... Ne3 {[%clk 0:00:15.9]} 34. Ne1 {[%clk 0:00:11.8]} 34... Nxg2
{[%clk 0:00:13.8]} 35. Nxg2 {[%clk 0:00:12.7]} 35... Qxd3 {[%clk 0:00:13.6]} 36.
Nf4 {[%clk 0:00:11.4]} 36... Qg3+ {[%clk 0:00:13.6]} 37. Ng2 {[%clk 0:00:10.1]}
37... Kd6 {[%clk 0:00:13.4]} 38. Kf1 {[%clk 0:00:09.7]} 38... Kd5 {[%clk
0:00:11.5]} 39. Rd2 {[%clk 0:00:08.4]} 39... Kc4 {[%clk 0:00:11.1]} 40. Ke2
{[%clk 0:00:07.8]} 40... Qxg2+ {[%clk 0:00:10.9]} 0-1

[Event "Early-Titled-Tuesday-Blitz-March-19-2024"]
[Site "Chess.com"]
[Date "2024.03.19"]
[Round "9"]
[White "Let_it_be_1"]
[Black "Happy1712Drummer"]
[Result "1-0"]
[WhiteElo "2605"]
[BlackElo "2459"]
[TimeControl "180+1"]
[EndTime "9:45:15 PDT"]
[Termination "Let_it_be_1 won on time"]

1. e4 {[%clk 0:03:00.9]} 1... c5 {[%clk 0:02:55.9]} 2. Nf3 {[%clk 0:03:00.4]}
2... e6 {[%clk 0:02:56.4]} 3. d4 {[%clk 0:03:00.6]} 3... cxd4 {[%clk 0:02:57.3]}
4. Nxd4 {[%clk 0:03:01]} 4... Nf6 {[%clk 0:02:58]} 5. Nc3 {[%clk 0:03:00.9]}
5... Nc6 {[%clk 0:02:58.7]} 6. Ndb5 {[%clk 0:03:00.8]} 6... Bc5 {[%clk
0:02:58.7]} 7. Nd6+ {[%clk 0:03:00.6]} 7... Ke7 {[%clk 0:02:58.7]} 8. Bf4 {[%clk
0:03:00.8]} 8... e5 {[%clk 0:02:59.3]} 9. Nf5+ {[%clk 0:03:00.8]} 9... Kf8
{[%clk 0:02:59.9]} 10. Bg5 {[%clk 0:03:01.3]} 10... d6 {[%clk 0:02:58.6]} 11.
Bxf6 {[%clk 0:03:01.5]} 11... Qxf6 {[%clk 0:02:57]} 12. Nd5 {[%clk 0:03:01.6]}
12... Qg6 {[%clk 0:02:56.5]} 13. Qf3 {[%clk 0:02:49.4]} 13... h5 {[%clk
0:02:49.5]} 14. c3 {[%clk 0:02:45.8]} 14... Qg4 {[%clk 0:02:45]} 15. Be2 {[%clk
0:02:33.5]} 15... Qxf3 {[%clk 0:02:23.3]} 16. Bxf3 {[%clk 0:02:33.6]} 16... g6
{[%clk 0:02:21.7]} 17. Nfe3 {[%clk 0:02:32.1]} 17... Be6 {[%clk 0:02:18.4]} 18.
b4 {[%clk 0:02:00.8]} 18... Bxe3 {[%clk 0:02:13.2]} 19. Nxe3 {[%clk 0:02:00.7]}
19... Rc8 {[%clk 0:02:07.3]} 20. O-O {[%clk 0:01:43.1]} 20... Kg7 {[%clk
0:01:58.7]} 21. Rfd1 {[%clk 0:01:41.2]} 21... Rhd8 {[%clk 0:01:58.8]} 22. a4
{[%clk 0:01:34.8]} 22... Ne7 {[%clk 0:01:44.7]} 23. Rd3 {[%clk 0:01:25.2]} 23...
Bc4 {[%clk 0:01:24.5]} 24. Rd2 {[%clk 0:01:18.7]} 24... Bb3 {[%clk 0:01:21]} 25.
Bd1 {[%clk 0:01:16.8]} 25... Rxc3 {[%clk 0:01:15.5]} 26. Ra3 {[%clk 0:01:12.2]}
26... Bxd1 {[%clk 0:00:34.5]} 27. Rxc3 {[%clk 0:01:04.2]} 27... Bxa4 {[%clk
0:00:35.1]} 28. Rc7 {[%clk 0:00:52.2]} 28... Nc8 {[%clk 0:00:35]} 29. Nd5 {[%clk
0:00:42.2]} 29... Bc6 {[%clk 0:00:27.2]} 30. Nc3 {[%clk 0:00:34.1]} 30... a6
{[%clk 0:00:24.7]} 31. f3 {[%clk 0:00:27.4]} 31... Nb6 {[%clk 0:00:20.4]} 32.
Nd5 {[%clk 0:00:19]} 32... Na8 {[%clk 0:00:17.7]} 33. Rxc6 {[%clk 0:00:13.7]}
33... bxc6 {[%clk 0:00:17.6]} 34. Ne7 {[%clk 0:00:14.6]} 34... Nb6 {[%clk
0:00:07.3]} 35. Nxc6 {[%clk 0:00:14.4]} 35... Rd7 {[%clk 0:00:07.9]} 36. Kf2
{[%clk 0:00:13.6]} 36... Kf6 {[%clk 0:00:06.4]} 37. Ra2 {[%clk 0:00:12.5]} 37...
Rc7 {[%clk 0:00:04.1]} 38. Nd8 {[%clk 0:00:09.5]} 38... Ke7 {[%clk 0:00:03]} 39.
Rxa6 {[%clk 0:00:09.5]} 1-0

[Event "Early-Titled-Tuesday-Blitz-March-19-2024"]
[Site "Chess.com"]
[Date "2024.03.19"]
[Round "9"]
[White "yosephtaher"]
[Black "Zhigalko_Sergei"]
[Result "0-1"]
[WhiteElo "2952"]
[BlackElo "2870"]
[TimeControl "180+1"]
[EndTime "9:45:17 PDT"]
[Termination "Zhigalko_Sergei won by resignation"]

1. c4 {[%clk 0:03:00.9]} 1... e5 {[%clk 0:02:59.8]} 2. Nc3 {[%clk 0:02:58.8]}
2... Nf6 {[%clk 0:03:00.4]} 3. g3 {[%clk 0:02:59.3]} 3... c6 {[%clk 0:02:58.7]}
4. Nf3 {[%clk 0:02:59]} 4... d6 {[%clk 0:02:58.5]} 5. Bg2 {[%clk 0:02:58.8]}
5... Be7 {[%clk 0:02:58.6]} 6. d3 {[%clk 0:02:57.1]} 6... O-O {[%clk 0:02:58.8]}
7. O-O {[%clk 0:02:57.8]} 7... h6 {[%clk 0:02:57.4]} 8. Rb1 {[%clk 0:02:58.2]}
8... Be6 {[%clk 0:02:57.3]} 9. b4 {[%clk 0:02:57.6]} 9... Nbd7 {[%clk
0:02:57.9]} 10. b5 {[%clk 0:02:58.1]} 10... d5 {[%clk 0:02:58.2]} 11. bxc6
{[%clk 0:02:58.2]} 11... bxc6 {[%clk 0:02:59.1]} 12. Qa4 {[%clk 0:02:53.7]}
12... Nc5 {[%clk 0:02:52.2]} 13. Qd1 {[%clk 0:02:40.3]} 13... Ncd7 {[%clk
0:02:44]} 14. Qa4 {[%clk 0:02:31.8]} 14... Nc5 {[%clk 0:02:43.8]} 15. Qc2 {[%clk
0:02:27]} 15... Ncd7 {[%clk 0:02:19.8]} 16. Rd1 {[%clk 0:02:20.2]} 16... Qa5
{[%clk 0:02:10.3]} 17. Bd2 {[%clk 0:01:54.2]} 17... Qa6 {[%clk 0:02:09.3]} 18.
cxd5 {[%clk 0:01:48]} 18... cxd5 {[%clk 0:02:07.4]} 19. Nb5 {[%clk 0:01:48.7]}
19... Rfc8 {[%clk 0:01:49.4]} 20. Qb3 {[%clk 0:01:09]} 20... d4 {[%clk
0:01:36.5]} 21. Qb2 {[%clk 0:01:07.2]} 21... Rab8 {[%clk 0:01:36.3]} 22. Nc7
{[%clk 0:00:42.7]} 22... Rxc7 {[%clk 0:01:32.8]} 23. Qxb8+ {[%clk 0:00:40.7]}
23... Nxb8 {[%clk 0:01:33.7]} 24. Rxb8+ {[%clk 0:00:41.4]} 24... Rc8 {[%clk
0:01:28.7]} 25. Rb2 {[%clk 0:00:36.7]} 25... Ba3 {[%clk 0:01:12.9]} 26. Rbb1
{[%clk 0:00:35.8]} 26... Nd7 {[%clk 0:01:03.6]} 27. e3 {[%clk 0:00:28.5]} 27...
Bxa2 {[%clk 0:01:01.9]} 28. Ra1 {[%clk 0:00:28.9]} 28... Bb2 {[%clk 0:01:02]}
29. exd4 {[%clk 0:00:29.6]} 29... exd4 {[%clk 0:00:58.4]} 30. Bh3 {[%clk
0:00:28.7]} 30... Rd8 {[%clk 0:00:50]} 31. Bb4 {[%clk 0:00:23.8]} 31... Bxa1
{[%clk 0:00:48.3]} 32. Rxa1 {[%clk 0:00:24.7]} 32... Qxd3 {[%clk 0:00:47.2]} 33.
Ne1 {[%clk 0:00:22.1]} 33... Qc4 {[%clk 0:00:43.7]} 34. Ba5 {[%clk 0:00:18.5]}
34... Nb6 {[%clk 0:00:41.9]} 35. Bf1 {[%clk 0:00:18]} 35... Qe6 {[%clk
0:00:31.4]} 36. Nd3 {[%clk 0:00:17.4]} 36... Bc4 {[%clk 0:00:25.8]} 37. Nf4
{[%clk 0:00:17.7]} 37... Qc6 {[%clk 0:00:22.7]} 38. Bg2 {[%clk 0:00:18.2]} 38...
Qb5 {[%clk 0:00:21.4]} 39. Bd2 {[%clk 0:00:18.5]} 39... a6 {[%clk 0:00:15.9]}
40. Ba5 {[%clk 0:00:17]} 40... Re8 {[%clk 0:00:15.6]} 41. h4 {[%clk 0:00:16.6]}
41... Nd5 {[%clk 0:00:15.7]} 42. Nh3 {[%clk 0:00:16.1]} 42... Nc3 {[%clk
0:00:14.4]} 43. Nf4 {[%clk 0:00:16.4]} 43... Ne2+ {[%clk 0:00:14.3]} 44. Nxe2
{[%clk 0:00:17]} 44... Bxe2 {[%clk 0:00:15.2]} 45. Bd2 {[%clk 0:00:16.3]} 45...
Qb2 {[%clk 0:00:14.8]} 46. Ra2 {[%clk 0:00:16.2]} 46... Qxa2 {[%clk 0:00:14.9]}
0-1

[Event "Early-Titled-Tuesday-Blitz-March-19-2024"]
[Site "Chess.com"]
[Date "2024.03.19"]
[Round "9"]
[White "IngOscarArdila"]
[Black "Kotlyar_K"]
[Result "0-1"]
[WhiteElo "2404"]
[BlackElo "2617"]
[TimeControl "180+1"]
[EndTime "9:45:18 PDT"]
[Termination "Kotlyar_K won on time"]

1. d4 {[%clk 0:03:00.1]} 1... Nf6 {[%clk 0:02:56.9]} 2. c4 {[%clk 0:03:00.4]}
2... g6 {[%clk 0:02:56.3]} 3. Nc3 {[%clk 0:03:00.3]} 3... d5 {[%clk 0:02:56]} 4.
Nf3 {[%clk 0:03:00]} 4... Bg7 {[%clk 0:02:55.8]} 5. e3 {[%clk 0:02:59.9]} 5...
O-O {[%clk 0:02:55.1]} 6. Be2 {[%clk 0:03:00]} 6... c5 {[%clk 0:02:55.2]} 7. O-O
{[%clk 0:02:59.2]} 7... Nc6 {[%clk 0:02:49.8]} 8. dxc5 {[%clk 0:02:58.8]} 8...
dxc4 {[%clk 0:02:43.6]} 9. Bxc4 {[%clk 0:02:57.7]} 9... Qa5 {[%clk 0:02:40.7]}
10. Qe2 {[%clk 0:02:51.1]} 10... Qxc5 {[%clk 0:02:35.5]} 11. h3 {[%clk
0:02:50.7]} 11... Bf5 {[%clk 0:02:28.1]} 12. Bd2 {[%clk 0:02:47.5]} 12... Ne4
{[%clk 0:02:22.1]} 13. Rac1 {[%clk 0:02:37.8]} 13... Nxd2 {[%clk 0:02:08.2]} 14.
Nxd2 {[%clk 0:02:36.8]} 14... Ne5 {[%clk 0:01:53.5]} 15. e4 {[%clk 0:02:00.4]}
15... Nxc4 {[%clk 0:01:50.4]} 16. Nxc4 {[%clk 0:02:00.1]} 16... Be6 {[%clk
0:01:50.1]} 17. Ne3 {[%clk 0:01:53.2]} 17... Rac8 {[%clk 0:01:30]} 18. Ncd5
{[%clk 0:01:50.1]} 18... Qxc1 {[%clk 0:01:15.7]} 19. Rxc1 {[%clk 0:01:51]} 19...
Rxc1+ {[%clk 0:01:15.8]} 20. Kh2 {[%clk 0:01:51]} 20... Bxd5 {[%clk 0:01:14.4]}
21. Nxd5 {[%clk 0:01:48.2]} 21... e6 {[%clk 0:01:13.1]} 22. Qd2 {[%clk
0:01:35.8]} 22... Rc4 {[%clk 0:00:57.2]} 23. Ne3 {[%clk 0:00:54.3]} 23... Rc7
{[%clk 0:00:51.1]} 24. Qd6 {[%clk 0:00:51]} 24... Rfc8 {[%clk 0:00:50.2]} 25. f4
{[%clk 0:00:44]} 25... Bxb2 {[%clk 0:00:49.7]} 26. e5 {[%clk 0:00:43.2]} 26...
Bc1 {[%clk 0:00:46.5]} 27. Qd4 {[%clk 0:00:27.9]} 27... Rc3 {[%clk 0:00:34.9]}
28. Ng4 {[%clk 0:00:25.9]} 28... R3c4 {[%clk 0:00:30.6]} 29. Nf6+ {[%clk
0:00:12.1]} 29... Kg7 {[%clk 0:00:30.3]} 30. Qd7 {[%clk 0:00:03.6]} 30... Bxf4+
{[%clk 0:00:28.5]} 31. g3 {[%clk 0:00:04.2]} 31... Rc2+ {[%clk 0:00:20.5]} 32.
Kg1 {[%clk 0:00:04.2]} 32... Bxe5 {[%clk 0:00:18.3]} 33. Ne8+ {[%clk 0:00:02.6]}
33... Kg8 {[%clk 0:00:13]} 34. Nd6 {[%clk 0:00:01.6]} 34... Bxd6 {[%clk
0:00:13.1]} 35. Qxd6 {[%clk 0:00:02.2]} 35... Rxa2 {[%clk 0:00:10.4]} 36. Qd1
{[%clk 0:00:01]} 36... Rac2 {[%clk 0:00:08.8]} 37. Qd3 {[%clk 0:00:01]} 37... a6
{[%clk 0:00:07]} 0-1

[Event "Early-Titled-Tuesday-Blitz-March-19-2024"]
[Site "Chess.com"]
[Date "2024.03.19"]
[Round "9"]
[White "Kildepiotr"]
[Black "emeli_chess"]
[Result "1-0"]
[WhiteElo "2691"]
[BlackElo "2419"]
[TimeControl "180+1"]
[EndTime "9:45:20 PDT"]
[Termination "Kildepiotr won on time"]

1. Nf3 {[%clk 0:03:00.9]} 1... f5 {[%clk 0:02:58]} 2. d3 {[%clk 0:02:59.9]} 2...
d6 {[%clk 0:02:56.2]} 3. d4 {[%clk 0:02:59.3]} 3... e6 {[%clk 0:02:52.9]} 4.
Nbd2 {[%clk 0:02:56.9]} 4... Nf6 {[%clk 0:02:52.3]} 5. c3 {[%clk 0:02:56.4]}
5... Be7 {[%clk 0:02:50.7]} 6. Qc2 {[%clk 0:02:56.1]} 6... d5 {[%clk 0:02:47.9]}
7. Ne5 {[%clk 0:02:51.4]} 7... O-O {[%clk 0:02:46.5]} 8. Ndf3 {[%clk 0:02:50.8]}
8... Nfd7 {[%clk 0:02:42.5]} 9. Bf4 {[%clk 0:02:49.1]} 9... Nxe5 {[%clk
0:02:41.9]} 10. Bxe5 {[%clk 0:02:46.6]} 10... Bf6 {[%clk 0:02:39.3]} 11. e3
{[%clk 0:02:44.8]} 11... Bxe5 {[%clk 0:02:38.4]} 12. Nxe5 {[%clk 0:02:44]} 12...
Nd7 {[%clk 0:02:38.2]} 13. Nd3 {[%clk 0:02:42.3]} 13... Qe7 {[%clk 0:02:35.7]}
14. c4 {[%clk 0:02:41.6]} 14... b6 {[%clk 0:02:25.7]} 15. cxd5 {[%clk
0:02:40.1]} 15... exd5 {[%clk 0:02:25.4]} 16. Qxc7 {[%clk 0:02:37.1]} 16... Ba6
{[%clk 0:02:21.7]} 17. Qc3 {[%clk 0:02:27.3]} 17... Rac8 {[%clk 0:02:17.1]} 18.
Qb3 {[%clk 0:02:26.7]} 18... Bc4 {[%clk 0:01:57.5]} 19. Qb4 {[%clk 0:02:22.7]}
19... Qxb4+ {[%clk 0:01:49.7]} 20. Nxb4 {[%clk 0:02:22.1]} 20... f4 {[%clk
0:01:50.2]} 21. Bxc4 {[%clk 0:02:07.5]} 21... Rxc4 {[%clk 0:01:49.2]} 22. Nxd5
{[%clk 0:02:07.1]} 22... fxe3 {[%clk 0:01:45.7]} 23. Nxe3 {[%clk 0:02:06.6]}
23... Rxd4 {[%clk 0:01:42.8]} 24. O-O {[%clk 0:02:06.4]} 24... Nc5 {[%clk
0:01:37]} 25. Rfd1 {[%clk 0:02:05.9]} 25... Rfd8 {[%clk 0:01:34.6]} 26. Rxd4
{[%clk 0:02:05.5]} 26... Rxd4 {[%clk 0:01:34.8]} 27. Rd1 {[%clk 0:02:06.4]}
27... Rxd1+ {[%clk 0:01:33.8]} 28. Nxd1 {[%clk 0:02:07.3]} 28... Kf7 {[%clk
0:01:34.3]} 29. f3 {[%clk 0:02:05.4]} 29... Ke6 {[%clk 0:01:34.5]} 30. Kf2
{[%clk 0:02:05.4]} 30... Kd5 {[%clk 0:01:34.9]} 31. Ke3 {[%clk 0:02:05.6]} 31...
Kc4 {[%clk 0:01:26.7]} 32. Nf2 {[%clk 0:02:01.8]} 32... a5 {[%clk 0:01:14.6]}
33. Ne4 {[%clk 0:02:01.1]} 33... Ne6 {[%clk 0:01:10.5]} 34. Nd2+ {[%clk
0:01:57.9]} 34... Kd5 {[%clk 0:01:06.8]} 35. f4 {[%clk 0:01:56.7]} 35... a4
{[%clk 0:01:05.3]} 36. a3 {[%clk 0:01:54.2]} 36... b5 {[%clk 0:01:03.6]} 37. g3
{[%clk 0:01:52.2]} 37... Kc5 {[%clk 0:00:58.5]} 38. Ke4 {[%clk 0:01:47]} 38...
b4 {[%clk 0:00:56.8]} 39. f5 {[%clk 0:01:45.3]} 39... bxa3 {[%clk 0:00:34.3]}
40. bxa3 {[%clk 0:01:44.2]} 40... Nd4 {[%clk 0:00:29.3]} 41. Ke5 {[%clk
0:01:17.5]} 41... Nc6+ {[%clk 0:00:25.6]} 42. Ke4 {[%clk 0:01:10.5]} 42... Nd4
{[%clk 0:00:25.5]} 43. g4 {[%clk 0:01:09.3]} 43... Nb5 {[%clk 0:00:20.2]} 44.
Ke5 {[%clk 0:01:01.9]} 44... Nxa3 {[%clk 0:00:18.6]} 45. g5 {[%clk 0:01:01.8]}
45... Nb5 {[%clk 0:00:18.4]} 46. f6 {[%clk 0:01:00.8]} 46... gxf6+ {[%clk
0:00:18]} 47. gxf6 {[%clk 0:01:00.8]} 47... Nd6 {[%clk 0:00:03.6]} 48. Ne4+
{[%clk 0:01:00]} 48... Nxe4 {[%clk 0:00:03.7]} 49. f7 {[%clk 0:00:57.4]} 49...
Nc3 {[%clk 0:00:03.3]} 50. f8=Q+ {[%clk 0:00:56.5]} 50... Kc4 {[%clk 0:00:04.2]}
51. Qf7+ {[%clk 0:00:55.3]} 51... Kb4 {[%clk 0:00:04.1]} 52. Qxh7 {[%clk
0:00:54.9]} 52... a3 {[%clk 0:00:04.1]} 53. Kd4 {[%clk 0:00:53.5]} 53... Nb5+
{[%clk 0:00:03.7]} 54. Kd3 {[%clk 0:00:53]} 54... a2 {[%clk 0:00:03.8]} 55. Qg7
{[%clk 0:00:52.6]} 55... Ka3 {[%clk 0:00:02]} 56. h4 {[%clk 0:00:51.4]} 1-0

[Event "Early-Titled-Tuesday-Blitz-March-19-2024"]
[Site "Chess.com"]
[Date "2024.03.19"]
[Round "9"]
[White "InitiatingASC"]
[Black "Fh2411"]
[Result "0-1"]
[WhiteElo "2353"]
[BlackElo "2610"]
[TimeControl "180+1"]
[EndTime "9:45:21 PDT"]
[Termination "Fh2411 won on time"]

1. d4 {[%clk 0:03:00.9]} 1... d5 {[%clk 0:02:59.7]} 2. c4 {[%clk 0:03:00.8]}
2... c6 {[%clk 0:03:00.6]} 3. cxd5 {[%clk 0:02:59.5]} 3... cxd5 {[%clk
0:03:01.5]} 4. Bf4 {[%clk 0:02:56.4]} 4... Nc6 {[%clk 0:03:00.7]} 5. e3 {[%clk
0:02:55]} 5... Nf6 {[%clk 0:03:01]} 6. Bd3 {[%clk 0:02:52.3]} 6... Qb6 {[%clk
0:02:55.2]} 7. Qb3 {[%clk 0:02:45.3]} 7... Qxb3 {[%clk 0:02:53.7]} 8. axb3
{[%clk 0:02:45.3]} 8... Nb4 {[%clk 0:02:48.9]} 9. Bb5+ {[%clk 0:02:38.9]} 9...
Bd7 {[%clk 0:02:49.2]} 10. Bxd7+ {[%clk 0:02:34.9]} 10... Nxd7 {[%clk 0:02:48]}
11. Kd2 {[%clk 0:02:28.2]} 11... a6 {[%clk 0:02:42.4]} 12. Nf3 {[%clk
0:02:21.5]} 12... Rc8 {[%clk 0:02:39.8]} 13. Nc3 {[%clk 0:02:18.8]} 13... e6
{[%clk 0:02:40]} 14. Rhc1 {[%clk 0:02:17.1]} 14... Be7 {[%clk 0:02:15.5]} 15.
Na4 {[%clk 0:02:04]} 15... O-O {[%clk 0:02:12.8]} 16. Ne5 {[%clk 0:01:58.2]}
16... Nxe5 {[%clk 0:02:09.4]} 17. Bxe5 {[%clk 0:01:58.2]} 17... Rc6 {[%clk
0:02:01.9]} 18. Nc5 {[%clk 0:01:44.4]} 18... f6 {[%clk 0:01:53.6]} 19. Bg3
{[%clk 0:01:42]} 19... Bxc5 {[%clk 0:01:53.3]} 20. Rxc5 {[%clk 0:01:35.4]} 20...
Rfc8 {[%clk 0:01:50]} 21. Kc3 {[%clk 0:01:13.8]} 21... Rxc5+ {[%clk 0:01:49.5]}
22. dxc5 {[%clk 0:01:14]} 22... Nc6 {[%clk 0:01:50]} 23. Bd6 {[%clk 0:01:05.5]}
23... Kf7 {[%clk 0:01:50.2]} 24. Ra4 {[%clk 0:01:01.9]} 24... e5 {[%clk
0:01:49.1]} 25. f4 {[%clk 0:00:59.3]} 25... Ke6 {[%clk 0:01:46.1]} 26. Kd3
{[%clk 0:00:52.9]} 26... Na7 {[%clk 0:01:35.3]} 27. fxe5 {[%clk 0:00:48]} 27...
fxe5 {[%clk 0:01:34.9]} 28. Rh4 {[%clk 0:00:48.4]} 28... Rh8 {[%clk 0:01:10.9]}
29. Rh5 {[%clk 0:00:41.3]} 29... Nc6 {[%clk 0:01:11.5]} 30. e4 {[%clk
0:00:33.7]} 30... d4 {[%clk 0:01:08.5]} 31. Kc4 {[%clk 0:00:26.3]} 31... g6
{[%clk 0:01:08.7]} 32. Rg5 {[%clk 0:00:23.5]} 32... Rd8 {[%clk 0:00:53.5]} 33.
b4 {[%clk 0:00:19.7]} 33... Rd7 {[%clk 0:00:51.2]} 34. h4 {[%clk 0:00:16.8]}
34... Rf7 {[%clk 0:00:49.5]} 35. b5 {[%clk 0:00:14.9]} 35... axb5+ {[%clk
0:00:49.1]} 36. Kxb5 {[%clk 0:00:15.4]} 36... Rf2 {[%clk 0:00:45.8]} 37. b3
{[%clk 0:00:08.9]} 37... d3 {[%clk 0:00:40.8]} 38. Rg3 {[%clk 0:00:07.4]} 38...
d2 {[%clk 0:00:37.8]} 39. Rd3 {[%clk 0:00:07.4]} 39... Rxg2 {[%clk 0:00:27.7]}
40. Bc7 {[%clk 0:00:07.7]} 40... Nd4+ {[%clk 0:00:27.7]} 41. Kc4 {[%clk
0:00:06.4]} 41... Nc2 {[%clk 0:00:20.9]} 42. Rd6+ {[%clk 0:00:04.7]} 42... Ke7
{[%clk 0:00:20.7]} 43. Kc3 {[%clk 0:00:04.8]} 43... Na1 {[%clk 0:00:11.4]} 0-1

[Event "Early-Titled-Tuesday-Blitz-March-19-2024"]
[Site "Chess.com"]
[Date "2024.03.19"]
[Round "9"]
[White "MdChess1734"]
[Black "NikitaShnadrygin"]
[Result "1-0"]
[WhiteElo "2373"]
[BlackElo "2652"]
[TimeControl "180+1"]
[EndTime "9:45:26 PDT"]
[Termination "MdChess1734 won by resignation"]

1. e4 {[%clk 0:03:00.9]} 1... c5 {[%clk 0:02:57.5]} 2. Nf3 {[%clk 0:03:00.7]}
2... e6 {[%clk 0:02:57.4]} 3. d4 {[%clk 0:03:01.1]} 3... cxd4 {[%clk 0:02:58]}
4. Nxd4 {[%clk 0:03:01.8]} 4... Nf6 {[%clk 0:02:58.9]} 5. Bd3 {[%clk 0:03:00.7]}
5... Nc6 {[%clk 0:02:59.5]} 6. Nxc6 {[%clk 0:02:59]} 6... bxc6 {[%clk
0:03:00.4]} 7. O-O {[%clk 0:02:58.9]} 7... d5 {[%clk 0:03:01.1]} 8. Nc3 {[%clk
0:02:58.2]} 8... Be7 {[%clk 0:03:01.1]} 9. Qe2 {[%clk 0:02:55.5]} 9... O-O
{[%clk 0:03:00.7]} 10. f4 {[%clk 0:02:53.6]} 10... Nd7 {[%clk 0:03:00.9]} 11. e5
{[%clk 0:02:50.6]} 11... Nc5 {[%clk 0:02:59.5]} 12. Kh1 {[%clk 0:02:32.4]} 12...
f5 {[%clk 0:02:54]} 13. b3 {[%clk 0:02:17.3]} 13... a5 {[%clk 0:02:53.9]} 14.
Ba3 {[%clk 0:02:14.3]} 14... Nxd3 {[%clk 0:02:48.7]} 15. Bxe7 {[%clk 0:02:12.7]}
15... Nxf4 {[%clk 0:02:47]} 16. Bxd8 {[%clk 0:01:37.8]} 16... Nxe2 {[%clk
0:02:45.2]} 17. Bxa5 {[%clk 0:01:38.1]} 17... Ba6 {[%clk 0:01:14.7]} 18. Nxe2
{[%clk 0:01:24.8]} 18... Bxe2 {[%clk 0:01:14.6]} 19. Rfe1 {[%clk 0:01:25.4]}
19... Rxa5 {[%clk 0:01:14.3]} 20. Rxe2 {[%clk 0:01:25.1]} 20... Rfa8 {[%clk
0:01:14.3]} 21. a4 {[%clk 0:01:24]} 21... c5 {[%clk 0:01:14.6]} 22. Rd1 {[%clk
0:01:19.7]} 22... Rb8 {[%clk 0:01:11.5]} 23. g3 {[%clk 0:01:04.9]} 23... Rb4
{[%clk 0:01:10.8]} 24. Kg2 {[%clk 0:01:03.2]} 24... Kf7 {[%clk 0:01:03.7]} 25.
Kf3 {[%clk 0:01:02]} 25... Ke7 {[%clk 0:01:01]} 26. Rd3 {[%clk 0:00:58.5]} 26...
c4 {[%clk 0:00:40.6]} 27. Rd4 {[%clk 0:00:54.2]} 27... Rc5 {[%clk 0:00:26.6]}
28. Re1 {[%clk 0:00:11.7]} 28... Rb8 {[%clk 0:00:24.1]} 29. bxc4 {[%clk
0:00:11.7]} 29... Rb4 {[%clk 0:00:23.9]} 30. Ra1 {[%clk 0:00:09.4]} 30... Rcxc4
{[%clk 0:00:19.5]} 31. Rxc4 {[%clk 0:00:06.2]} 31... Rxc4 {[%clk 0:00:20.4]} 32.
Ra2 {[%clk 0:00:06.9]} 32... Kd7 {[%clk 0:00:16]} 33. a5 {[%clk 0:00:06.2]}
33... Kc7 {[%clk 0:00:15.6]} 34. a6 {[%clk 0:00:04.7]} 34... Kb8 {[%clk
0:00:15.8]} 35. a7+ {[%clk 0:00:04.7]} 35... Ka8 {[%clk 0:00:15.9]} 36. Ra6
{[%clk 0:00:05.4]} 36... Rxc2 {[%clk 0:00:14.5]} 37. Rxe6 {[%clk 0:00:05.3]}
37... Rxh2 {[%clk 0:00:14.1]} 38. Re7 {[%clk 0:00:04.9]} 38... g6 {[%clk
0:00:11.6]} 39. e6 {[%clk 0:00:04.3]} 39... Rh1 {[%clk 0:00:11.7]} 40. Rd7
{[%clk 0:00:04.6]} 40... Re1 {[%clk 0:00:05.8]} 41. e7 {[%clk 0:00:04.8]} 1-0